Cogmind - Beta 14 @@@ ROGUE MODE // 2024.12.11 @ 18:25:29 Player: Fangrelle Result: Destroyed by HS-XK3(R) with Subdweller Beam Cannon Performance ------------- Evolutions (0) 0 Regions Visited (2) 400 Robots Destroyed (43) 215 Value Destroyed (1077) 1077 Prototype IDs (13) 260 Alien Tech Used (0) 0 Bonus (0) 0 TOTAL SCORE: 1952 Bonus ------- None Cogmind --------- Core Integrity 0/250 Matter 274/300 Energy 87/100 System Corruption 0% Temperature Cool (15) Movement Treading (160) Location -10/Subcaves Parts ------- > --- POWER (1) -------- Subdweller Power Source > --- PROPULSION (2) --- Light Treads Spiked Treads > --- UTILITY (2) ------ Disposable Heat Sink > --- WEAPON (2) ------- Flamer > --- INVENTORY (5) ---- Improved Terrain Scanner Seismic Detector Rainbow Chip Grenade Launcher Mining Laser Peak State ------------ > --- POWER ------------ Subdweller Power Source > --- PROPULSION ------- Light Treads Light Treads > --- UTILITY ---------- Improved Terrain Scanner Improved Terrain Scanner > --- WEAPON ----------- Medium Laser Subdweller Machine Gun > --- INVENTORY -------- Seismic Detector Light Armor Plating Rainbow Chip Grenade Launcher Mining Laser [Rating: 14] Favorites ----------- Power Ion Engine Engine Ion Engine Propulsion Light Treads Treads Light Treads Leg Aluminum Leg Utility Seismic Detector Device Seismic Detector Storage Small Storage Unit Protection Light Armor Plating Weapon EM Pulse Gun Energy Gun EM Pulse Gun Ballistic Gun Subdweller Machine Gun Launcher Grenade Launcher Special Weapon Flamer Build | -11 -10 -10 ------- Run | Yrd Mat Sub Slots Evolved . | . . . Power . | . . . Propulsion . | . . . Utility . | . . . Weapon . | . . . Parts Attached 47 | 4 24 19 Power 5 | . 3 2 Engine 5 | . 3 2 Core . | . . . Reactor . | . . . Propulsion 13 | 2 10 1 Treads 13 | 2 10 1 Leg . | . . . Wheel . | . . . Hover . | . . . Flight . | . . . Utility 9 | 1 2 6 Device 7 | 1 1 5 Storage . | . . . Processor . | . . . Hackware . | . . . Protection 2 | . 1 1 Artifact . | . . . Weapon 20 | 1 9 10 Energy Gun 6 | 1 3 2 Energy Cannon . | . . . Ballistic Gun 6 | . 5 1 Ballistic Cannon . | . . . Launcher 2 | . . 2 Special Weapon 6 | . 1 5 Impact Weapon . | . . . Slashing Weapon . | . . . Piercing Weapon . | . . . Special Melee Weapon . | . . . Unidentified Prototypes . | . . . Parts Lost 10 | . 3 7 Power 2 | . 1 1 Propulsion . | . . . Utility 2 | . . 2 Weapon 6 | . 2 4 Highest Loss Streak 3 | . 2 3 To Critical Strikes . | . . . Average Slot Usage (%) 98 | . 97 98 Engine 13 | . 13 13 Treads 27 | . 27 28 Device 16 | . 13 17 Storage 3 | . 10 . Protection 8 | . 3 10 Energy Gun 12 | . 14 11 Ballistic Gun 8 | . 12 7 Special Weapon 5 | . . 8 Peak Build Rating 14 | 8 8 14 Average Rating 9 | 6 7 11 On Entrance 7 | 6 8 7 Naked Turns . | . . . Heaviest Build 15 | 15 15 15 Greatest Support 40 | 40 40 40 Greatest Overweight (x) 1 | . 1 . Average Overweight (x) . | . . . Largest Inventory Capacity 8 | 8 8 5 Average Capacity 5 | 8 7 5 Most Carried 8 | 7 8 5 Average Carried 5 | 3 7 4 Final Capacity 8 | 8 5 5 Final Carried 7 | 7 5 5 Class Distribution -------------------- 69% | Mutant 30% | Scavenger-Mutant Dominant Class ---------------- Mutant | -10/Materials Mutant | -10/Subcaves Resources | -11 -10 -10 ----------- Run | Yrd Mat Sub Matter Collected 874 | 286 352 236 Remotely . | . . . Salvage Created 1451 | 151 1056 244 Parts 104 | 21 66 17 Haulers Intercepted 2 | . 2 . Recyclers Shooed 2 | . 2 . Parts Field Recycled . | . . . Retrieved Matter . | . . . Parts Self-Destructed 12 | . . 12 Prevented . | . . . Kills | -11 -10 -10 ------- Run | Yrd Mat Sub Combat Hostiles Destroyed 24 | . 17 7 Guns 17 | . 15 2 Cannons 2 | . . 2 AOE 4 | . 1 3 Classes Destroyed 10 | 3 6 1 Worker 4 | 2 2 . Builder 2 | . 2 . Tunneler 5 | 4 1 . Hauler 2 | . 2 . Recycler 1 | 1 . . Mechanic 1 | . 1 . Operator 2 | . 2 . Watcher 2 | . 2 . Grunt 19 | . 17 2 Subdweller 5 | . . 5 Best Kill Streak 9 | 2 9 2 Combat Bots Only 4 | . 4 2 Max Kills in Single Turn 2 | 1 2 2 Gunslinging . | . . . Exploded 2 | . 1 2 Melee . | . . . Uniques/NPCs Destroyed . | . . . Combat | -11 -10 -10 -------- Run | Yrd Mat Sub Hostile Shots Fired 121 | . 78 43 Missed 34 | . 23 11 Damage Taken 1530 | . 748 782 Core 275 | . 115 160 Absorbed by Shields . | . . . Core Remaining (%) 100 | 100 . . Volleys Fired 169 | 56 84 29 Largest 2 | 1 2 2 Hottest 150 | 20 100 150 Shots Fired 262 | 56 159 47 Gun 234 | 56 157 21 Cannon . | . . . Launcher 3 | . . 3 Special 25 | . 2 23 Kinetic 132 | 56 70 6 Thermal 28 | . 2 26 Explosive 3 | . . 3 Electromagnetic 99 | . 87 12 Robot Hit Streak 10 | 7 9 10 Robot Miss Streak 8 | 3 8 1 Penetration Max . | . . . Secondary Targets 4 | . 4 . Max Gunslinging Chain 1 | . 1 . Shots Hit Robots 166 | 37 93 36 Core Hits 81 | 13 51 17 Critical Kills . | . . . Critical Parts Destroyed . | . . . Critical Strikes 7 | . 2 5 Burn 5 | . . 5 Corrupt 2 | . 2 . Melee Attacks . | . . . Impact . | . . . Slashing . | . . . Piercing . | . . . Sneak Attacks . | . . . Combat Hostiles . | . . . Follow-up Attacks . | . . . Damage Inflicted 2492 | 304 1532 656 Guns 1800 | 304 1186 310 Cannons . | . . . Explosions 534 | . 346 188 Melee . | . . . Ramming . | . . . Kinetic 838 | 304 432 102 Thermal 529 | . 346 183 Explosive 188 | . . 188 Electromagnetic 937 | . 754 183 Impact . | . . . Slashing . | . . . Piercing . | . . . Highest Corruption . | . . . Average Corruption . | . . . Corruption Purged . | . . . Corruption Blocked . | . . . Overload Shots . | . . . Overflow Damage . | . . . Projectiles . | . . . Explosions . | . . . Melee . | . . . Knockbacks . | . . . Impact . | . . . Kinetic . | . . . Secondary . | . . . Self-Inflicted Damage 94 | . . 94 Shots 3 | . . 3 Rammed . | . . . Targets Rammed . | . . . Kicked . | . . . Crushed . | . . . Highest Temperature 243 | . 243 9 Average Temperature 60 | . 61 5 Received Heat Transfer 624 | . 495 129 Siege Activations . | . . . Robots Corrupted 2 | . 2 . Combat Hostiles 1 | . 1 . Parts Fried 2 | . 1 1 Impact Corruptions . | . . . Robots Melted . | . . . Combat Hostiles . | . . . Parts Melted . | . . . Heat Transferred 2158 | . 250 1908 Parts Sabotaged . | . . . Parts Stolen . | . . . Parts Stripped . | . . . Power Chain Reactions 5 | . 5 . Alert | -11 -10 -10 ------- Run | Yrd Mat Sub Peak Influence 325 | 35 325 . Initial 22 | . 22 . Average 152 | 18 176 . Maximum Alert Level 1 | . 1 . Low Security (%) 56 | 100 48 . Level 1 43 | . 51 . Level 2 . | . . . Level 3 . | . . . Level 4 . | . . . Level 5 . | . . . High Security . | . . . Max Security . | . . . Squads Dispatched 4 | . 4 . Investigation 2 | . 2 . Extermination . | . . . Reinforcement 2 | . 2 . Assault . | . . . Garrison . | . . . Intercept . | . . . Searches Triggered . | . . . Construction Impeded . | . . . Haulers Reinforced . | . . . Active Scanning Responses . | . . . Cargo Convoy Interrupts . | . . . Stealth | -11 -10 -10 --------- Run | Yrd Mat Sub Distress Signals 4 | . 4 . Communications Jammed . | . . . Distress Signals . | . . . Times Spotted 34 | . 23 11 Peak Tracking Total 3 | . 3 2 Tactical Retreats 2 | . 1 1 Traps | -11 -10 -10 ------- Run | Yrd Mat Sub Traps Triggered 7 | . 7 . Indirectly . | . . . Trap Hack Attempts . | . . . Triggered . | . . . Disarmed . | . . . Reprogrammed . | . . . Reused 1 | . . 1 Traps Extracted . | . . . Installed 1 | . . 1 Triggered 3 | . . 3 Most Traps Carried 1 | . . 1 Machines | -11 -10 -10 ---------- Run | Yrd Mat Sub Machines Disabled 4 | . 3 1 Max in Single Turn 1 | . 1 1 Machines Repaired . | . . . Machines Dismantled . | . . . Machines Sabotaged . | . . . Overloaded Fab Kills . | . . . Hacking | -11 -10 -10 --------- Run | Yrd Mat Sub Machines Accessed 10 | . 7 3 Terminals 6 | . 6 . Fabricators . | . . . Repair Stations . | . . . Recycling Units 1 | . 1 . Scanalyzers . | . . . Garrison Access . | . . . Total Hacks 42 | . 28 14 Successful 29 | . 15 14 Failed 12 | . 12 . Catastrophic 2 | . 2 . Database Lockouts 1 | . 1 . Manual 22 | . 22 . Terminals 26 | . 26 . Fabricators . | . . . Repair Stations . | . . . Recycling Units 2 | . 2 . Scanalyzers . | . . . Garrison Access . | . . . Terminal Hacks 18 | . 4 14 Record 12 | . . 12 Robot Analysis 2 | . 2 . Prototype ID Bank 1 | . 1 . Open Door 1 | . . 1 Alert Level 1 | . 1 . Derelict Proto ID Bank 1 | . . 1 Fabricator Hacks . | . . . Repair Station Hacks . | . . . Recycling Unit Hacks . | . . . Scanalyzer . | . . . Garrison Access Hacks . | . . . Unauthorized Hacks 11 | . 11 . Terminals 11 | . 11 . Assimilate 4 | . 4 . Botnet 6 | . 6 . Operators 1 | . 1 . Fabricators . | . . . Repair Stations . | . . . Recycling Units . | . . . Scanalyzers . | . . . Garrison Access . | . . . Data Cores Recovered . | . . . Used . | . . . Hacking Detections 7 | . 7 . Full Trace Events 1 | . 1 . Feedback Events . | . . . Feedback Blocked . | . . . Robot Schematics Acquired . | . . . Robots Built . | . . . Authchips . | . . . Time . | . . . Total Robot Build Rating . | . . . Part Schematics Acquired . | . . . Parts Built . | . . . Authchips . | . . . Time . | . . . Total Part Build Rating . | . . . Parts Repaired . | . . . Time . | . . . Parts Recycled . | . . . Recycled Matter . | . . . Retrieved Matter . | . . . Retrieved Components . | . . . Parts Scanalyzed . | . . . Part Schematics Acquired . | . . . Parts Damaged . | . . . Bothacking | -11 -10 -10 ------------ Run | Yrd Mat Sub Used RIF Installer . | . . . Robots Hacked . | . . . Non-combat . | . . . Combat . | . . . Robot Hacks Applied . | . . . Relay Couplers Released . | . . . Fabnet Peak Effective % . | . . . Robots Rewired . | . . . Allies Hacked . | . . . Hacks Repelled . | . . . Allies | -11 -10 -10 -------- Run | Yrd Mat Sub Total Allies . | . . . Largest Group . | . . . Highest-Rated Group . | . . . Highest-Rated Ally . | . . . Total Orders . | . . . Ally Attacks . | . . . Total Damage . | . . . Kills . | . . . Allies Corrupted . | . . . Allies Melted . | . . . Intel | -11 -10 -10 ------- Run | Yrd Mat Sub Robot Analysis Total 2 | . 2 . Derelict Logs Recovered 1 | . . 1 Drone Launches . | . . . Drone Recoveries . | . . . Exploration | -11 -10 -10 ------------- Run | Yrd Mat Sub Turns Passed 5153 | 272 1505 3376 Spaces Moved 2278 | 99 717 1462 Core 1 | . 1 . Treads 2277 | 99 716 1462 Legs . | . . . Wheels . | . . . Hover . | . . . Flight . | . . . Fastest Speed 100 | 160 100 160 Average Speed 159 | 160 159 160 Slowest Speed 160 | 160 160 160 Overloaded Moves . | . . . Propulsion Burnouts . | . . . Robots Hopped . | . . . Cave-ins Triggered . | . . . Exploration Rate (%) 53 | 5 89 67 Regions Visited 2 Branch Regions 1 Pre-discovered Areas 1 | . . 1 Known Exits Taken . | . . . Unknown Exits Taken 2 | 1 1 . Scrap Searched . | . . . Spaces Dug 2 | . 2 . Terrain Destroyed 29 | . 12 17 Melee . | . . . Projectile 2 | . 2 . AOE 27 | . 10 17 Terrain Rammed . | . . . Walls Destroyed . | . . . Machines Disabled . | . . . Actions | -11 -10 -10 --------- Run | Yrd Mat Sub Total 3503 | 169 913 2421 Wait 965 | . 67 898 Move 2276 | 98 716 1462 Hop . | . . . Pick Up 19 | 6 10 3 Fast Attach 22 | 1 14 7 Attach 9 | 2 5 2 Detach 2 | . . 2 Swap 16 | 1 5 10 Drop 24 | 5 12 7 Fire 169 | 56 84 29 Melee . | . . . Ram . | . . . Kick . | . . . Crush . | . . . Escape Stasis . | . . . Rewire . | . . . Trap 1 | . . 1 Miscellaneous . | . . . Route ------- -11/Scrapyard -10/Materials (discovered 5 exits: [*Mat x3] / [*Min] / *Sub) -10/Subcaves (discovered 2 exits: *Mat x2) History --------- Turn | Location | Event 43 | -11/Scrapyard | Discovered new exit (range 3) 273 | -11/Scrapyard | Entered Materials 309 | -10/Materials | Build established: Mutant 744 | -10/Materials | Discovered new exit (range 6) 1114 | -10/Materials | Discovered new exit (range 16) 1386 | -10/Materials | Discovered new exit (range 15) 1418 | -10/Materials | Central database locked down 1696 | -10/Materials | Discovered new exit (range 16) 1765 | -10/Materials | Discovered new exit (range 9) 1778 | -10/Materials | Entered Subcaves 2420 | -10/Subcaves | Identified exit to Materials 2452 | -10/Subcaves | Visited 4L-MR0's lab 2473 | -10/Subcaves | Found Rainbow Chip 2556 | -10/Subcaves | Learned location of Zion (-6) 2556 | -10/Subcaves | Met a Zionite searching for "candidates" 2814 | -10/Subcaves | Core integrity fell below 50% 2825 | -10/Subcaves | Discovered exit to Materials (range 13) 2903 | -10/Subcaves | Shifting Twisted Machinery released Riot Gun 2906 | -10/Subcaves | Shifting Twisted Machinery released Shrapnel Trap 3551 | -10/Subcaves | Core integrity fell below 20% 3582 | -10/Subcaves | Lost 3 parts (1p2w) 3855 | -10/Subcaves | Build established: Scavenger-Mutant 4097 | -10/Subcaves | Visited Clippyterm 4102 | -10/Subcaves | Learned Factory trap positions 4957 | -10/Subcaves | Shifting Twisted Machinery released Flamer 5061 | -10/Subcaves | A swath of the cavern ceiling suddenly collapsed 5137 | -10/Subcaves | Ambushed by Subdwellers from Twisted Machinery 5154 | -10/Subcaves | Destroyed by HS-XK3(R) with Subdweller Beam Cannon Last Messages --------------- 04628_ Acquired Disposable Heat Sink. 04632_ Subatomizers dissect the Sub. Power Source. 04632_ Dropped Broken Sub. Power Source. 04647_ Acquired 24 matter. 04667_ Subatomizers dissect the Sub. Laser. Flamer falls loose from the Twisted Machinery. 04975_ AV-MH4(u) tweaks Twisted Machinery. 05015_ Dropped Mining Laser. 05016_ Acquired Flamer. 05019_ Dropped Med. Laser. 05020_ Acquired Mining Laser. A swath of the cavern ceiling suddenly collapses. 05137_ HS-XK3(R) emerges from the Twisted Machinery. 05139_ Dropped Lgt. Treads. 05144_ Sub. Power Source shoots sparks and powers down. 05146_ Lgt. Armor Plating destroyed. 05150_ Subatomizers dissect the Lgt. Treads. 05152_ HS-XK3(R) suffers critical hit (Burn). 05152_ HS-XK3(R) overheating. 05154_ Sub. Machine Gun destroyed. Map ----- +----------------------------------------------------+ | ?????????????????# ######?# ?????? | | ?????????????????## ### "#?? #????? | | ?????????????????## ### "#"#?? #????? | | ?????????????????# ##?# ## #####""""# ##????? | | ?????????????????# ##?# ####??????"""##?????? | | ?????????????????## #?## ##?????????#"#?????? | | ??????????????????# #??# ###???????????????? | | ?????????????????## #??# ??????????????? | | ???????????#?????# ##??### ??????????????? | | ?????? ## ???## ##? # ##?????????????? | | ???????# #?# ## #??????????????? | | ???????# # ##??????????????? | | ???????? "" ### ###???????????????? | | ????????# " #####?????????????????? | | ????????# " ## ###?????????????????? | | ???????# "" ?# #####?????????????? | | ????????"" " ?# " #?????????????? | | ????????"" " " ## "" ??????????????? | | ????????"" ### " ######"????????????????? | | ?????????"???## ##?????????????????????? | | ??????????????# ###???????????????????? | | ??????????? ## ##??????????????????? | | ????????? ##?????????????????? | | ????????? = ##????????????????? | | ?????????? #????????????????? | | ??????????## R @ #????????????????? | | ???????????# R #???????????????? | | ??????????# #???????????????? | | ??????????? #### ##### #???????????????? | | ???????????# ???## #????##???????????????? | | ???????????? """""????# ?????????????????????? | | ???????????? """ ?????# ?????????????????????? | | ????????????????????????## #????????????????????? | | ??????????????????????????###????????????????????? | | ?????????????????????????????????????????????????? | | ?????????????????????????????????????????????????? | | ?????????????????????????????????????????????????? | | ?????????????????????????????????????????????????? | | ?????????????????????????????????????????????????? | | ?????????????????????????????????????????????????? | | ?????????????????????????????????????????????????? | | ?????????????????????????????????????????????????? | | ?????????????????????????????????????????????????? | | ?????????????????????????????????????????????????? | | ?????????????????????????????????????????????????? | | ?????????????????????????????????????????????????? | | ?????????????????????????????????????????????????? | | ?????????????????????????????????????????????????? | | ?????????????????????????????????????????????????? | | ?????????????????????????????????????????????????? | +----------------------------------------------------+ Best States ------------- Heat Dissipation 25 Coolant Potential 50 Energy Generation 15 Energy Capacity 250 Matter Stores 300 Matter Capacity 300 Sight Range 16 Terrain Scan Range 16 Terrain Scan Density 10 Armor Coverage 150 Evasion (%) 40 Recoil Reduction 2 Item Schematics ----------------- None Robot Schematics ------------------ None Fabricated ------------ Nothing Alien Tech Used ----------------- None Achievements -------------- None Challenges ------------ None Game ------ Seed HeavyExpertMace Manual? 0 Play Time 00:20:51 Cumulative 155.9 hours Start 2024.12.11 @ 18:06:11 End 2024.12.11 @ 18:25:29 Sessions 1 Manual Loads 0 Difficulty Rogue Special Mode None Game No. 296 Rogue 296 Adventurer 0 Explorer 0 Win Type - Total 0 Types 0/0/0/0/0/0/0/0/0 Lore% 46 Gallery% 42 Achievement% 36 Wizard Run 0 Options --------- Layout 0 ASCII 0 Keyboard 0 Movement Mouse Keybinds 0 Fullscreen 1 Font 24/Smallcaps Map View 91x25 Zoom Use 81% Tactical HUD 1 Map Filters NONE Filters NONE Steam 1 RUN: 8464886c-5c9c-4b49-95db-eb6388a7b73a